bitfinex-derivatives/quotes_ETHF0:USTF0_20241018
["timestamp","ask_amount","ask_price","bid_price","bid_amount"]
[1729287549222,48.96512153,2648.2,2648.1,0.7889]
[1729287549424,49.1723038,2648.2,2648.1,0.7889]
[1729287549625,52.94707054,2648.2,2648.1,0.7889]
[1729287550027,54.30707054,2648.2,2648.1,0.7889]
[1729287550227,50.3472599,2648.2,2648.1,0.7889]
[1729287551931,50.3472599,2648.2,2648.1,0.3955]
[1729287552322,54.80204688,2648.2,2648.1,0.3955]
[1729287553638,50.53400201,2648.2,2648.1,0.3955]
[1729287554133,53.74180201,2648.2,2648.1,0.3955]
[1729287554335,53.36421201,2648.2,2647.5,0.4062]
[1729287554635,0.37767,2647.7,2647.6,0.4287]
[1729287554928,0.42948157,2647.7,2647.6,0.4287]
[1729287555534,1.41181157,2647.7,2647.6,0.4287]
[1729287555727,1.78947157,2647.7,2647.6,0.4287]
[1729287557222,1.78947157,2647.7,2646.9,0.37777]
[1729287557223,0.37771,2647.4,2646.9,0.37777]
[1729287557428,4.69969055,2647.0,2646.7,3.2078]
[1729287557628,2.84482661,2646.8,2646.7,3.58561]
[1729287557828,1.36,2646.8,2646.7,3.58561]
[1729287558025,2.89669152,2646.8,2646.7,8.72401]
[1729287558236,2.89669152,2646.8,2646.7,7.36401]
[1729287558433,1.41181157,2646.8,2646.7,7.36401]
[1729287558639,2.89669152,2646.8,2646.7,7.36401]
[1729287559335,1.41181157,2646.8,2646.7,7.36401]
[1729287559533,2.89669152,2646.8,2646.7,7.36401]
[1729287559729,2.40090321,2646.8,2646.7,7.36401]
[1729287560129,1.41181157,2646.8,2646.7,7.36401]
[1729287560329,2.40060802,2646.8,2646.7,7.36401]
[1729287560945,2.40060802,2646.8,2646.7,4.15621]
[1729287561232,2.40060802,2646.8,2646.7,7.36401]
[1729287561737,1.41181157,2646.8,2646.7,7.36401]
[1729287562037,1.78960157,2646.8,2646.7,7.36401]
[1729287562832,1.78960157,2646.8,2646.7,4.15621]
[1729287563333,1.78960157,2646.8,2646.7,7.36401]
[1729287565127,1.78960157,2646.8,2646.7,4.15621]
[1729287565333,1.78960157,2646.8,2646.7,7.36401]
[1729287569234,1.78960157,2646.8,2646.7,3.58561]
[1729287569434,1.78960157,2646.8,2646.7,7.36401]
[1729287569641,1.78960157,2646.8,2646.7,3.58561]
[1729287569948,1.78960157,2646.8,2646.7,7.36401]
[1729287573747,1.41181157,2646.8,2646.7,7.36401]
[1729287574354,1.78960157,2646.8,2646.7,3.58561]
[1729287574646,1.78960157,2646.8,2646.7,7.36401]
[1729287574838,1.78960157,2646.8,2646.7,3.58561]
[1729287575250,1.78960157,2646.8,2646.7,7.36401]
[1729287575443,1.78960157,2646.8,2646.7,3.58561]
[1729287576452,1.78960157,2646.8,2646.7,7.36401]
[1729287576650,1.78960157,2646.8,2646.7,3.58561]
[1729287577543,1.78960157,2646.8,2646.7,7.36401]
[1729287577745,1.78960157,2646.8,2646.7,3.58561]
[1729287578047,1.78960157,2646.8,2646.7,7.36401]
[1729287578242,0.42960157,2646.8,2646.7,7.36401]
[1729287578553,1.78960157,2646.8,2646.7,7.36401]
[1729287578745,1.41181157,2646.8,2646.7,7.36401]
[1729287579844,1.78960157,2646.8,2646.7,7.36401]
[1729287580045,1.41181157,2646.8,2646.7,7.36401]
[1729287580446,1.41181157,2646.8,2646.7,4.15621]
[1729287580853,1.41181157,2646.8,2646.7,0.37781]
[1729287581047,1.41181157,2646.8,2646.7,7.36401]
[1729287581243,1.41181157,2646.8,2646.7,3.58561]
[1729287582155,1.41181157,2646.8,2646.7,7.36401]
[1729287582453,1.78960157,2646.8,2646.7,3.58561]
[1729287582641,1.78960157,2646.8,2646.7,4.15621]
[1729287582841,1.78960157,2646.8,2646.7,0.37781]
[1729287583037,1.78960157,2646.8,2646.7,4.15621]
[1729287583244,1.78960157,2646.8,2646.7,0.37781]
[1729287583755,1.78960157,2646.8,2646.7,3.58561]
[1729287584149,2.77839802,2646.8,2646.7,3.58561]
[1729287584348,3.62889802,2646.8,2646.7,3.58561]
[1729287585952,3.62889802,2646.8,2646.7,0.37781]
[1729287589367,4.12498152,2646.8,2646.7,0.37781]
[1729287591859,3.62887132,2646.8,2646.7,0.37781]
[1729287594258,2.64010157,2646.8,2646.7,0.37781]
[1729287594755,3.62933505,2646.8,2646.7,0.37781]
[1729287595149,2.64010157,2646.8,2646.7,0.37781]
[1729287595455,4.12498152,2646.8,2646.7,0.37781]
[1729287598056,2.64010157,2646.8,2646.7,0.37781]
[1729287598947,4.61979212,2646.8,2646.7,0.37781]
[1729287599361,2.64010157,2646.8,2646.7,0.37781]
[1729287599560,4.6209926,2646.8,2646.7,0.37781]
[1729287599868,4.62098902,2646.8,2646.7,0.37781]
[1729287600159,2.03269902,2646.8,2646.7,0.37781]
[1729287600355,3.51874888,2646.8,2646.7,5.14323244]
[1729287600554,1.04251065,2646.8,2646.7,5.28257002]
[1729287600854,1.04251065,2646.8,2646.7,6.64264695]
[1729287600855,0.38721065,2646.8,2646.7,6.64264695]
[1729287601058,1.48604986,2647.0,2646.9,0.37778]
[1729287601360,2.84637985,2647.0,2646.9,8.35102601]
[1729287601572,1.36,2647.0,2646.9,7.36318]
[1729287601862,2.84625074,2647.0,2646.9,7.36318]
[1729287602364,1.36,2647.0,2646.9,8.35102601]
[1729287603264,1.36,2647.0,2646.9,5.14322601]
[1729287603462,1.36,2647.0,2646.9,8.35102601]
[1729287604167,1.36,2647.0,2646.9,8.77532601]
[1729287604360,2.84627642,2647.0,2646.9,8.77532601]
[1729287605060,2.84627642,2647.0,2646.9,7.78748]
[1729287606858,1.36,2647.0,2646.9,9.90371147]
[1729287607057,1.36,2647.0,2646.9,8.77532601]
[1729287607257,1.48627642,2647.1,2646.9,8.39754601]
[1729287607561,1.48627642,2647.1,2647.0,1.23566]
[1729287609370,2.84627642,2647.1,2647.0,1.23566]
[1729287611366,1.36,2647.1,2647.0,1.23566]
[1729287613959,1.7535,2647.1,2647.0,1.23566]
[1729287614164,1.7535,2647.1,2647.0,4.44346]
[1729287619270,1.7535,2647.1,2647.0,1.23566]
[1729287619472,1.7535,2647.1,2647.0,4.44346]
[1729287621763,1.48627642,2647.2,2647.0,9.2033]
[1729287621968,2.84627642,2647.2,2647.1,0.37775]
[1729287622271,1.36,2647.2,2647.1,4.15535]
[1729287622469,2.84627642,2647.2,2647.1,4.15535]
[1729287622674,1.36,2647.2,2647.1,4.15535]
[1729287623268,1.48627642,2647.3,2647.1,5.1376]
[1729287623463,1.48627642,2647.5,2647.2,5.1376]
[1729287623666,2.84627642,2647.6,2647.5,0.37769]
[1729287624069,2.84627642,2647.6,2647.5,5.01839]
[1729287624377,1.36,2647.6,2647.5,5.01839]
[1729287626175,1.36,2647.6,2647.5,1.24159]
[1729287626775,1.36,2647.6,2647.5,5.01839]
[1729287629274,1.36,2647.6,2647.5,1.24159]
[1729287630182,1.36,2647.6,2647.5,4.44939]
[1729287630587,1.36,2647.6,2647.5,4.84849]
[1729287634381,0.4059,2647.7,2647.5,4.4708]
[1729287634692,1.7659,2647.7,2647.6,0.37768]
[1729287639291,1.7659,2647.7,2647.6,3.58548]
[1729287639476,3.25217642,2647.7,2647.6,3.58548]
[1729287639883,1.7659,2647.7,2647.6,3.58548]
[1729287640294,3.25217642,2647.7,2647.6,0.37768]
[1729287640483,3.25217642,2647.7,2647.6,3.58548]
[1729287640683,1.7659,2647.7,2647.6,3.58548]
[1729287640882,1.7659,2647.7,2647.6,0.37768]
[1729287641085,3.25217642,2647.7,2647.6,3.58548]
[1729287641293,1.7659,2647.7,2647.6,4.94548]
[1729287642188,1.7659,2647.7,2647.6,1.73768]
[1729287642395,1.7659,2647.7,2647.6,4.94548]
[1729287642587,3.25217642,2647.7,2647.6,4.94548]
[1729287642784,1.7659,2647.7,2647.6,4.94548]
[1729287643882,1.36,2647.7,2647.6,4.94548]
[1729287644098,1.7855,2647.7,2647.6,4.94548]
[1729287647191,1.7855,2647.7,2647.6,1.73768]
[1729287647495,1.7855,2647.7,2647.6,4.94548]
[1729287648291,2.2725,2647.7,2647.6,4.94548]
[1729287648893,0.9125,2647.7,2647.6,4.94548]
[1729287650098,0.423,2647.8,2647.7,0.37766]
[1729287650294,0.423,2647.8,2647.7,1.73766]
[1729287650295,0.9207,2647.8,2647.7,1.73766]
[1729287651493,0.9207,2647.8,2647.7,4.94546]
[1729287652200,2.40697642,2647.8,2647.7,4.94546]
[1729287657197,2.40697642,2647.8,2647.7,1.73766]
[1729287658102,2.40697642,2647.8,2647.7,4.94546]
[1729287659000,0.9207,2647.8,2647.7,4.94546]
[1729287663409,2.40697642,2647.8,2647.7,4.94546]
[1729287663612,0.9207,2647.8,2647.7,4.94546]
[1729287664725,2.40697642,2647.8,2647.7,4.94546]
[1729287667314,2.90158745,2647.8,2647.7,4.94546]
[1729287669432,0.9207,2647.8,2647.7,4.94546]
[1729287669620,2.90253639,2647.8,2647.7,4.94546]
[1729287670026,0.9207,2647.8,2647.7,4.94546]
[1729287670827,2.90256112,2647.8,2647.7,4.94546]
[1729287671329,0.9207,2647.8,2647.7,4.94546]
[1729287672524,5.13296318,2647.8,2647.7,3.58546]
[1729287672823,8.90976318,2647.8,2647.7,3.58546]
[1729287673027,6.43515,2647.8,2647.7,3.58546]
[1729287676634,6.43515,2647.8,2647.7,0.37766]
[1729287676837,6.43515,2647.8,2647.7,3.58546]
[1729287679020,8.91281497,2647.8,2647.7,3.58546]
[1729287679226,6.43515,2647.8,2647.7,3.58546]
[1729287683335,2.65835,2647.8,2647.7,3.58546]
[1729287684332,2.2807,2647.8,2647.7,3.58546]
[1729287684733,2.65835,2647.8,2647.7,3.58546]
[1729287685431,2.2807,2647.8,2647.7,3.58546]
[1729287686130,4.26273256,2647.8,2647.7,3.58546]
[1729287686434,2.2807,2647.8,2647.7,3.58546]
[1729287687328,4.2627668,2647.8,2647.7,3.58546]
[1729287688039,2.2807,2647.8,2647.7,3.58546]
[1729287688239,4.26276148,2647.8,2647.7,3.58546]
[1729287688433,2.2807,2647.8,2647.7,3.58546]
[1729287689242,4.75836497,2647.8,2647.7,3.58546]
[1729287689640,5.13601497,2647.8,2647.7,3.58546]
[1729287695136,4.75836497,2647.8,2647.7,3.58546]
[1729287697243,4.26266951,2647.8,2647.7,3.58546]
[1729287697541,2.2807,2647.8,2647.7,3.58546]
[1729287697742,2.2807,2647.8,2647.7,0.37766]
[1729287697941,2.2807,2647.8,2647.7,3.58546]
[1729287698353,2.2807,2647.8,2647.7,0.37766]
[1729287698743,2.2807,2647.8,2647.7,3.58546]
[1729287700144,2.2807,2647.8,2647.7,4.11616]
[1729287700836,2.2807,2647.8,2647.7,0.90836]
[1729287701041,4.26273705,2647.8,2647.7,4.11616]
[1729287701240,4.26273705,2647.8,2647.7,0.90836]
[1729287701446,2.2807,2647.8,2647.7,4.11616]
[1729287703246,2.2807,2647.8,2647.7,0.90836]
[1729287703646,2.2807,2647.8,2647.7,4.11616]
[1729287705247,2.2807,2647.8,2647.7,0.90836]
[1729287705454,2.2807,2647.8,2647.7,4.11616]
[1729287707346,2.2807,2647.8,2647.7,0.90836]
[1729287707541,2.2807,2647.8,2647.7,4.11616]
[1729287708651,2.2807,2647.8,2647.7,0.90836]
[1729287708948,5.13601497,2647.8,2647.7,3.58546]
[1729287711355,2.65835,2647.8,2647.7,3.58546]
[1729287715255,2.65835,2647.8,2647.7,0.37766]
[1729287715761,2.65835,2647.8,2647.7,3.58546]
[1729287718756,1.29835,2647.8,2647.7,3.58546]
[1729287718956,2.65835,2647.8,2647.7,3.58546]
[1729287719357,5.13747987,2647.8,2647.7,3.58546]
[1729287719663,5.13747335,2647.8,2647.7,3.58546]
[1729287720665,5.13747335,2647.8,2647.7,0.37766]
[1729287720955,5.13747335,2647.8,2647.7,3.58546]
[1729287721361,5.13747335,2647.8,2647.7,0.37766]
[1729287721552,5.13747335,2647.8,2647.7,3.58546]
[1729287721964,5.13747335,2647.8,2647.7,0.37766]
[1729287723054,2.65835,2647.8,2647.7,0.37766]
[1729287723260,5.13751989,2647.8,2647.7,0.37766]
[1729287723560,2.65835,2647.8,2647.7,0.37766]
[1729287723763,5.13742542,2647.8,2647.7,0.37766]
[1729287724066,5.1375236,2647.8,2647.7,0.37766]
[1729287725061,5.1375236,2647.8,2647.7,3.58546]
[1729287726363,5.13740465,2647.8,2647.7,3.58546]
[1729287726563,2.65835,2647.8,2647.7,3.58546]
[1729287727262,2.65835,2647.8,2647.7,0.37766]
[1729287729255,1.29835,2647.8,2647.7,0.37766]
[1729287729664,1.77029333,2647.8,2647.7,0.37766]
[1729287729860,1.29835,2647.8,2647.7,0.37766]
[1729287732258,1.29835,2647.8,2647.7,3.58546]
[1729287732559,1.29835,2647.8,2647.7,0.37766]
[1729287732761,1.29835,2647.8,2647.7,3.58546]
[1729287733067,1.29835,2647.8,2647.7,0.37766]
[1729287733568,1.29835,2647.8,2647.7,3.58546]
[1729287734470,3.77737557,2647.8,2647.7,3.58546]
[1729287736165,3.77737557,2647.8,2647.7,0.37766]
[1729287736672,3.77737557,2647.8,2647.7,3.58546]
[1729287738076,3.77737557,2647.8,2647.7,0.37766]
[1729287738267,3.77737557,2647.8,2647.7,3.58546]
[1729287738573,3.77737557,2647.8,2647.7,0.37766]
[1729287738973,3.77737557,2647.8,2647.7,3.58546]
[1729287740177,3.77737557,2647.8,2647.7,0.37766]
[1729287740376,3.77737557,2647.8,2647.7,3.58546]
[1729287741578,1.29835,2647.8,2647.7,3.58546]
[1729287741871,2.65835,2647.8,2647.7,3.58546]
[1729287742086,3.13031439,2647.8,2647.7,3.58546]
[1729287742572,2.65835,2647.8,2647.7,3.58546]
[1729287742772,3.13029582,2647.8,2647.7,3.58546]
[1729287743373,3.13029582,2647.8,2647.7,0.37766]
[1729287743571,3.13029582,2647.8,2647.7,3.58546]
[1729287744777,3.13029582,2647.8,2647.7,0.37766]
[1729287745181,3.13029582,2647.8,2647.7,3.58546]
[1729287746471,3.13029582,2647.8,2647.7,0.37766]
[1729287746676,2.65835,2647.8,2647.7,3.58546]
[1729287748777,2.2807,2647.8,2647.7,3.58546]
[1729287749277,2.2807,2647.8,2647.7,0.37766]
[1729287749686,2.2807,2647.8,2647.7,3.58546]
[1729287750369,4.75984581,2647.8,2647.7,3.58546]
[1729287750573,2.2807,2647.8,2647.7,3.58546]
[1729287751578,2.2807,2647.8,2647.7,0.37766]
[1729287751769,2.2807,2647.8,2647.7,3.58546]
[1729287751976,4.75993468,2647.8,2647.7,3.58546]
[1729287752385,2.2807,2647.8,2647.7,3.58546]
[1729287753185,3.83930535,2647.8,2647.7,3.58546]
[1729287753685,3.83930535,2647.8,2647.7,4.57330601]
[1729287755683,3.83930535,2647.8,2647.7,1.36550601]
[1729287755887,3.83930535,2647.8,2647.7,4.57330601]
[1729287756190,3.83930535,2647.8,2647.7,1.36550601]
[1729287756383,3.83930535,2647.8,2647.7,4.57330601]
[1729287756578,1.36,2647.8,2647.7,3.58546]
[1729287757087,1.36,2647.8,2647.6,0.37767]
[1729287757088,0.37766,2647.7,2647.6,0.37767]
[1729287757292,2.9393,2647.7,2647.5,0.5483]
[1729287757481,0.37768,2647.6,2647.5,0.92598]
[1729287759090,2.85663555,2647.6,2647.5,0.92598]
[1729287759291,0.37768,2647.6,2647.5,0.92598]
[1729287764386,2.85594204,2647.6,2647.5,0.92598]
[1729287765393,2.85591406,2647.6,2647.5,0.92598]
[1729287768295,4.21591406,2647.6,2647.5,0.92598]
[1729287768900,1.73768,2647.6,2647.5,0.92598]
[1729287769095,3.71964903,2647.6,2647.5,0.92598]
[1729287769298,1.73768,2647.6,2647.5,0.92598]
[1729287775002,1.73768,2647.6,2647.5,4.13378]
[1729287776605,1.73768,2647.6,2647.5,0.92598]
[1729287777007,1.73768,2647.6,2647.5,4.13378]
[1729287777810,1.73768,2647.6,2647.5,0.92598]
[1729287778010,1.73768,2647.6,2647.5,4.13378]
[1729287778313,1.73768,2647.6,2647.5,0.92598]
[1729287778904,1.73768,2647.6,2647.5,4.13378]
[1729287779712,4.21591406,2647.6,2647.5,4.13378]
[1729287780111,4.21591406,2647.6,2647.5,0.92598]
[1729287786811,1.73768,2647.6,2647.5,0.92598]
[1729287789023,5.41753406,2647.7,2647.5,0.92598]
[1729287789221,2.35962732,2647.6,2647.5,0.92598]
[1729287789419,2.35965604,2647.6,2647.5,2.02168]
[1729287790625,2.35969634,2647.6,2647.5,2.02168]
[1729287790812,1.73768,2647.6,2647.5,2.02168]
[1729287791316,1.73768,2647.6,2647.5,5.22948]
[1729287791717,1.73768,2647.6,2647.5,2.02168]
[1729287792026,1.73768,2647.6,2647.5,5.22948]
[1729287792523,1.73768,2647.6,2647.5,2.02168]
[1729287795913,3.34221151,2647.6,2647.5,2.02169]
[1729287796120,3.34221151,2647.6,2647.5,3.00953601]
[1729287801022,3.71989151,2647.6,2647.5,1.91383601]
[1729287801329,3.71989151,2647.6,2647.5,0.37769]
[1729287801330,1.73768,2647.6,2647.5,0.37769]
[1729287801931,4.21591406,2647.6,2647.5,0.37769]
[1729287803848,4.21651382,2647.6,2647.5,0.37769]
[1729287804148,4.21649709,2647.6,2647.5,0.37769]
[1729287807847,4.21648293,2647.6,2647.5,0.37769]
[1729287809552,1.73768,2647.6,2647.5,0.37769]
[1729287809951,4.21645709,2647.6,2647.5,0.37769]
[1729287814656,4.21645709,2647.6,2647.5,1.36553601]
[1729287815062,4.21645709,2647.6,2647.5,0.37769]
[1729287815563,1.73768,2647.6,2647.5,0.37769]
[1729287815767,4.21672242,2647.6,2647.5,0.37769]
[1729287817057,1.73768,2647.6,2647.5,0.37769]
[1729287820558,1.36,2647.6,2647.4,3.2078]
[1729287820759,0.37769,2647.5,2647.4,4.57333601]
[1729287821468,0.37769,2647.5,2647.4,3.58549]
[1729287821469,2.85658925,2647.5,2647.4,3.58549]
[1729287821765,2.85658925,2647.5,2647.4,0.37769]
[1729287822272,0.37769,2647.5,2647.4,1.36553601]
[1729287822773,2.85658925,2647.5,2647.4,0.37769]
[1729287824670,0.37769,2647.5,2647.4,1.36553601]
[1729287827870,2.36070392,2647.5,2647.4,2.50009301]
[1729287828068,2.36070392,2647.5,2647.4,2.5012042]
[1729287828069,1.98301392,2647.5,2647.4,2.5012042]
[1729287828266,2.36070392,2647.5,2647.4,1.512247]
[1729287828461,2.36070392,2647.5,2647.4,2.50115382]
[1729287828667,2.36070392,2647.5,2647.4,1.512247]
[1729287828866,2.36070392,2647.5,2647.4,2.50116623]
[1729287829566,2.36070392,2647.5,2647.4,1.36660923]
[1729287830765,2.36070392,2647.5,2647.4,6.27874346]
[1729287831067,2.36070392,2647.5,2647.4,5.28990263]
[1729287831664,2.36070392,2647.5,2647.4,4.15529]
[1729287831875,2.36070392,2647.5,2647.4,5.29026775]
[1729287832078,2.36070392,2647.5,2647.4,9.48741485]
[1729287832464,2.86650392,2647.5,2647.4,9.48741485]
[1729287832973,2.86650392,2647.5,2647.4,9.48739]
[1729287833364,0.88349,2647.5,2647.4,8.35241225]
[1729287833764,3.36238925,2647.5,2647.4,3.58549]
[1729287834373,0.88349,2647.5,2647.4,4.57481225]
[1729287834869,0.37769,2647.5,2647.4,4.57481225]
[1729287836274,2.36075163,2647.5,2647.4,5.70747857]
[1729287836461,2.36075163,2647.5,2647.4,5.70742918]
[1729287836861,0.37769,2647.5,2647.4,4.57481225]
[1729287839080,2.36073981,2647.5,2647.4,4.57481225]
[1729287839576,2.36073981,2647.5,2647.4,5.70743236]
[1729287839776,2.36073981,2647.5,2647.4,2.49963236]
[1729287840163,2.36073981,2647.5,2647.4,5.70743236]
[1729287840366,0.37769,2647.5,2647.4,3.58549]
[1729287840570,2.85658925,2647.6,2647.5,0.37769]
[1729287840776,2.47889925,2647.6,2647.5,0.37769]
[1729287840968,2.47889925,2647.6,2647.5,1.42639]
[1729287841170,0.5424,2647.7,2647.6,0.37768]
[1729287841370,3.02107298,2647.7,2647.6,0.37768]
[1729287841674,0.5424,2647.7,2647.6,1.36700225]
[1729287841876,2.52520318,2647.7,2647.6,1.36700225]
[1729287842077,2.52520318,2647.7,2647.6,1.91440225]
[1729287842676,3.88520318,2647.7,2647.6,1.91440225]
[1729287843482,3.8850101,2647.7,2647.6,1.91440225]
[1729287843678,4.2626701,2647.7,2647.6,1.91440225]
[1729287843979,3.88499366,2647.7,2647.6,1.91440225]
[1729287844375,3.34259366,2647.7,2647.6,1.91440225]
[1729287847075,3.34259366,2647.7,2647.6,0.92508]
[1729287848277,1.98259366,2647.7,2647.6,0.92508]
[1729287848680,1.98259366,2647.7,2647.6,1.91440225]
[1729287850381,1.98259366,2647.7,2647.6,0.92508]
[1729287851184,4.21633298,2647.8,2647.7,0.37766]
[1729287851381,4.21633298,2647.8,2647.7,3.58546]
[1729287852384,1.73766,2647.8,2647.7,3.58546]
[1729287854085,3.71931139,2647.8,2647.7,3.58546]
[1729287859793,3.71931139,2647.8,2647.7,0.37766]
[1729287860091,3.71931139,2647.8,2647.7,3.58546]
[1729287860891,3.71931139,2647.8,2647.7,0.37766]
[1729287861286,3.71931139,2647.8,2647.7,3.58546]
[1729287862696,3.71931139,2647.8,2647.7,0.37766]
[1729287862905,3.71931139,2647.8,2647.7,3.58546]
[1729287864092,1.73766,2647.8,2647.7,3.58546]
[1729287865477,0.37766,2647.8,2647.7,3.58546]
[1729287865684,1.73766,2647.8,2647.7,3.58546]
[1729287865881,4.25665016,2647.8,2647.7,3.58546]
[1729287866085,2.27536,2647.8,2647.7,3.58546]
[1729287866386,4.25668459,2647.8,2647.7,3.58546]
[1729287866893,4.25668459,2647.8,2647.7,0.37766]
[1729287867088,4.25668459,2647.8,2647.7,3.58546]
[1729287867287,4.25668459,2647.8,2647.7,4.64016]
[1729287867493,1.98132459,2647.8,2647.7,4.64016]
[1729287867686,3.34132459,2647.9,2647.7,5.25182225]
[1729287867886,3.34132459,2647.9,2647.8,0.37765]
[1729287869090,3.83867298,2647.9,2647.8,0.37765]
[1729287869398,1.36,2647.9,2647.8,0.37765]
[1729287872190,1.36,2647.9,2647.8,3.58545]
[1729287873597,1.98098642,2647.9,2647.8,3.58545]
[1729287873800,1.98097727,2648.0,2647.9,0.37763]
[1729287874304,1.98097727,2648.0,2647.9,0.91433]
[1729287877190,3.34097727,2648.1,2647.9,0.5367]
[1729287877395,3.34097727,2648.1,2648.0,1.41752]
[1729287878386,3.71858727,2648.1,2648.0,1.41752]
[1729287878791,3.34097727,2648.1,2648.0,1.41752]
[1729287880102,3.71858727,2648.1,2648.0,1.41752]
[1729287880998,2.35858727,2648.1,2648.0,1.41752]
[1729287881200,2.35858727,2648.1,2648.0,5.19352]
[1729287882703,2.35858727,2648.1,2648.0,8.40132]
[1729287883095,2.35858727,2648.1,2648.0,5.19352]
[1729287883289,2.35858727,2648.1,2648.0,4.62532]
[1729287883493,2.35858727,2648.1,2648.0,8.40132]
[1729287883903,2.35858727,2648.1,2648.0,4.62532]
[1729287884097,2.35858727,2648.1,2648.0,8.40132]
[1729287884310,2.85628298,2648.1,2648.0,8.40132]
[1729287885108,2.85628298,2648.1,2648.0,5.19352]
[1729287885501,2.85628298,2648.1,2648.0,8.40132]
[1729287886694,2.85628298,2648.1,2648.0,5.19352]
[1729287886895,2.85628298,2648.1,2648.0,8.40132]
[1729287887104,2.85628298,2648.1,2648.0,4.62532]
[1729287887408,2.85628298,2648.1,2648.0,8.40132]
[1729287887901,2.85628298,2648.1,2648.0,5.19352]
[1729287888103,2.85628298,2648.1,2648.0,1.41752]
[1729287888401,2.85628298,2648.1,2648.0,4.62532]
[1729287888605,2.85628298,2648.1,2648.0,1.41752]
[1729287888807,2.85628298,2648.1,2648.0,4.62532]
[1729287889607,3.41358298,2648.1,2648.0,4.62532]
[1729287892506,0.93491,2648.1,2648.0,4.62532]
[1729287896800,0.93491,2648.1,2648.0,1.41752]
[1729287897102,0.93491,2648.1,2648.0,4.62532]
[1729287897503,1.49051,2648.1,2648.0,4.62532]
[1729287900204,1.49051,2648.1,2648.0,3.58542]
[1729287900409,2.85051,2648.1,2648.0,3.58542]
[1729287900716,2.85051,2648.1,2648.0,1.58542]
[1729287901209,2.85051,2648.1,2648.0,0.37762]
[1729287902214,5.32918298,2648.1,2648.0,0.37762]
[1729287907412,2.85051,2648.1,2648.0,0.37762]
[1729287908712,1.49051,2648.1,2648.0,0.37762]
[1729287914421,3.96909737,2648.1,2648.0,0.37762]
[1729287915323,1.49051,2648.1,2648.0,0.37762]
[1729287915917,1.49051,2648.1,2648.0,3.58542]
[1729287916318,1.49051,2648.1,2648.0,0.37762]
[1729287916625,3.96922573,2648.1,2648.0,3.58542]
[1729287916818,3.96922573,2648.1,2648.0,0.37762]
[1729287917010,1.49051,2648.1,2648.0,3.58542]
[1729287917723,3.96931988,2648.1,2648.0,3.58542]
[1729287917921,1.96228896,2648.1,2648.0,3.58542]
[1729287918228,1.49051,2648.1,2648.0,3.58542]
[1729287921719,1.49051,2648.1,2648.0,0.37762]
[1729287922020,1.49051,2648.1,2648.0,3.58542]
[1729287923521,4.46004582,2648.1,2648.0,3.58542]
[1729287924127,4.46004582,2648.1,2648.0,3.2078]
[1729287924725,5.82004582,2648.1,2648.0,3.2078]
[1729287927226,4.46004582,2648.1,2648.0,3.2078]
[1729287927426,2.85051,2648.1,2648.0,3.2078]
[1729287930724,2.85051,2648.1,2648.0,3.58542]
[1729287933940,2.85051,2648.1,2648.0,0.37762]
[1729287934126,2.85051,2648.1,2648.0,3.58542]
[1729287934331,3.322388,2648.1,2648.0,3.58542]
[1729287934727,3.322388,2648.1,2648.0,0.37762]
[1729287935325,3.322388,2648.1,2648.0,3.58542]
[1729287936634,6.29192382,2648.1,2648.0,3.58542]
[1729287937031,6.29192382,2648.1,2648.0,0.37762]
[1729287937341,6.29192382,2648.1,2648.0,3.58542]
[1729287939232,6.29192382,2648.1,2648.0,0.37762]
[1729287939823,6.29192382,2648.1,2648.0,3.58542]
[1729287941634,6.29192382,2648.1,2648.0,3.2078]
[1729287942231,5.82004582,2648.1,2648.0,3.2078]
[1729287942530,5.82004582,2648.1,2648.0,3.58542]
[1729287943532,8.2384083,2648.1,2648.0,3.58542]
[1729287943840,8.71025822,2648.1,2648.0,3.58542]
[1729287944335,8.71025822,2648.1,2648.0,3.2078]
[1729287944734,3.32235992,2648.1,2648.0,3.2078]
[1729287949735,3.32235992,2648.1,2648.0,3.2078]
[1729287950130,7.09835992,2648.1,2648.0,3.2078]
[1729287953235,6.62651,2648.1,2648.0,3.2078]
[1729287953747,7.09826348,2648.1,2648.0,3.2078]
[1729287954243,6.12651,2648.1,2648.0,3.2078]
[1729287954642,6.50413,2648.1,2648.0,3.2078]
[1729287956343,6.97587457,2648.1,2648.0,3.2078]
[1729287959844,12.36311256,2648.1,2648.0,3.2078]
[1729287960040,12.36311256,2648.1,2647.7,2.83825]
[1729287960243,1.73765,2647.8,2647.7,2.83825]
[1729287960443,1.73765,2647.8,2647.7,1.47825]
[1729287960845,2.20948364,2647.8,2647.7,1.47825]
[1729287961243,1.73765,2647.8,2647.7,1.47825]
[1729287968343,1.73765,2647.8,2647.7,1.1006]
[1729287971740,3.71966515,2647.8,2647.7,1.1006]
[1729287972354,1.73765,2647.8,2647.7,1.1006]
[1729287973350,3.71966449,2647.8,2647.7,1.1006]
[1729287973541,1.73765,2647.8,2647.7,1.1006]
[1729287974957,4.21547151,2647.8,2647.7,1.1006]
[1729287976356,1.73765,2647.8,2647.7,1.1006]
[1729287976752,2.20935726,2647.8,2647.7,1.1006]
[1729287977851,2.20932214,2647.8,2647.7,1.1006]
[1729287978051,2.73632214,2647.8,2647.7,0.5552]
[1729287978248,0.37768,2647.6,2647.5,0.522]
[1729287978459,4.21490513,2647.6,2647.5,0.522]
[1729287978662,1.73768,2647.6,2647.5,0.522]
[1729287979453,4.21458535,2647.6,2647.5,0.522]
[1729287979645,4.21458535,2647.6,2647.5,1.065]
[1729287980446,2.85458535,2647.6,2647.5,1.065]
[1729287980649,2.85458535,2647.6,2647.5,4.2728]
[1729287980846,4.21458535,2647.6,2647.5,1.065]
[1729287981851,1.73768,2647.6,2647.5,1.065]
[1729287983157,1.73768,2647.6,2647.5,0.543]
[1729287984051,3.71860633,2647.6,2647.5,0.543]
[1729287984853,2.35860633,2647.6,2647.5,0.543]
[1729287985055,3.71860633,2647.6,2647.5,0.543]
[1729287985261,3.71843011,2647.6,2647.5,0.543]
[1729287986555,3.71839713,2647.6,2647.5,0.543]